[Event "Titled Tuesday Blitz April 25 Late 2023"]
[White "ArtemDyachuk"]
[Black "Bruedigam, Martin"]
[BlackFideId "24608033"]
[WhiteElo "2440"]
[BlackElo "2331"]
[Result "0-1"]
[Round "03"]
[TimeControl "180+2"]
[Date "2023.04.25"]
[WhiteClock "0:00:01"]
[BlackClock "0:00:31"]

1. Nf3 {[%clk 0:03:00]}  d5 {[%clk 0:02:59]} 2. e3 {[%clk 0:02:58]}  Nf6 {[%clk 0:02:54]} 3. c3 {[%clk 0:02:57]}  c5 {[%clk 0:02:54]} 4. d4 {[%clk 0:02:48]}  cxd4 {[%clk 0:02:54]} 5. exd4 {[%clk 0:02:47]}  Nc6 {[%clk 0:02:53]} 6. Bf4 {[%clk 0:02:47]}  Bg4 {[%clk 0:02:53]} 7. Nbd2 {[%clk 0:02:46]}  e6 {[%clk 0:02:53]} 8. Bd3 {[%clk 0:02:45]}  Be7 {[%clk 0:02:52]} 9. O-O {[%clk 0:02:44]}  O-O {[%clk 0:02:52]} 10. Qc2 {[%clk 0:02:41]}  Bh5 {[%clk 0:02:51]} 11. Ne5 {[%clk 0:02:40]}  a6 {[%clk 0:02:46]} 12. Rfe1 {[%clk 0:02:24]}  Rc8 {[%clk 0:02:45]} 13. Qb3 {[%clk 0:02:16]}  Nxe5 {[%clk 0:02:38]} 14. dxe5 {[%clk 0:02:11]}  Nd7 {[%clk 0:02:38]} 15. Qc2 {[%clk 0:02:02]}  Bg6 {[%clk 0:02:38]} 16. Bxg6 {[%clk 0:02:01]}  hxg6 {[%clk 0:02:39]} 17. Nf3 {[%clk 0:02:00]}  b5 {[%clk 0:02:37]} 18. a3 {[%clk 0:01:57]}  Nc5 {[%clk 0:02:29]} 19. g3 {[%clk 0:01:55]}  a5 {[%clk 0:02:25]} 20. h4 {[%clk 0:01:54]}  Ne4 {[%clk 0:02:22]} 21. Kg2 {[%clk 0:01:53]}  b4 {[%clk 0:02:18]} 22. axb4 {[%clk 0:01:41]}  axb4 {[%clk 0:02:19]} 23. Rad1 {[%clk 0:01:40]}  bxc3 {[%clk 0:02:11]} 24. Rxe4 {[%clk 0:01:27]}  dxe4 {[%clk 0:02:11]} 25. Rxd8 {[%clk 0:01:27]}  exf3+ {[%clk 0:02:11]} 26. Kxf3 {[%clk 0:01:28]}  Rfxd8 {[%clk 0:02:10]} 27. bxc3 {[%clk 0:01:28]}  Rc4 {[%clk 0:02:07]} 28. Be3 {[%clk 0:01:12]}  Rdc8 {[%clk 0:02:06]} 29. Bd2 {[%clk 0:01:10]}  Bb4 {[%clk 0:02:02]} 30. Qb3 {[%clk 0:00:48]}  Bxc3 {[%clk 0:02:02]} 31. Bf4 {[%clk 0:00:48]}  Bd4 {[%clk 0:01:54]} 32. Qd1 {[%clk 0:00:30]}  R8c5 {[%clk 0:01:43]} 33. Kg4 {[%clk 0:00:20]}  Bxe5 {[%clk 0:01:38]} 34. Qd8+ {[%clk 0:00:15]}  Kh7 {[%clk 0:01:38]} 35. Qe7 {[%clk 0:00:02]}  Bxf4 {[%clk 0:01:35]} 36. Qxf7 {[%clk 0:00:02]}  Be5+ {[%clk 0:00:53]} 37. Kh3 {[%clk 0:00:02]}  Bf6 {[%clk 0:00:47]} 38. Qxe6 {[%clk 0:00:02]}  Rc2 {[%clk 0:00:44]} 39. f4 {[%clk 0:00:03]}  R2c3 {[%clk 0:00:40]} 40. Kg4 {[%clk 0:00:02]}  Ra5 {[%clk 0:00:33]} 41. Qe8 {[%clk 0:00:01]}  Raa3 {[%clk 0:00:31]} 0-1


[Site "https://www.chess.com"]

[Event "Titled Tuesday Blitz April 25 Late 2023"]
[White "Atanasov, Anthony"]
[Black "Rangel, Daniel"]
[WhiteFideId "2623897"]
[BlackFideId "2124475"]
[WhiteElo "2326"]
[BlackElo "2256"]
[Result "0-1"]
[Round "03"]
[TimeControl "180+2"]
[Date "2023.04.25"]
[WhiteClock "0:00:01"]
[BlackClock "0:00:21"]

1. d4 {[%clk 0:03:00]}  Nf6 {[%clk 0:02:59]} 2. Nf3 {[%clk 0:02:57]}  g6 {[%clk 0:02:58]} 3. Nc3 {[%clk 0:02:55]}  Bg7 {[%clk 0:02:59]} 4. e4 {[%clk 0:02:55]}  O-O {[%clk 0:03:00]} 5. e5 {[%clk 0:02:55]}  Ne8 {[%clk 0:02:59]} 6. Bg5 {[%clk 0:02:54]}  c5 {[%clk 0:02:57]} 7. Nd5 {[%clk 0:02:54]}  Nc6 {[%clk 0:02:56]} 8. Bc4 {[%clk 0:02:45]}  cxd4 {[%clk 0:02:42]} 9. Nxd4 {[%clk 0:02:44]}  Qa5+ {[%clk 0:02:26]} 10. Bd2 {[%clk 0:02:31]}  Qc5 {[%clk 0:02:21]} 11. Nxc6 {[%clk 0:01:59]}  dxc6 {[%clk 0:02:18]} 12. Ne3 {[%clk 0:01:56]}  Bxe5 {[%clk 0:02:07]} 13. O-O {[%clk 0:01:52]}  Bxb2 {[%clk 0:02:07]} 14. Rb1 {[%clk 0:01:52]}  Bg7 {[%clk 0:02:07]} 15. Bb4 {[%clk 0:01:51]}  Qe5 {[%clk 0:02:04]} 16. Re1 {[%clk 0:01:47]}  Qc7 {[%clk 0:02:04]} 17. Qf3 {[%clk 0:01:35]}  Nd6 {[%clk 0:02:02]} 18. Bd3 {[%clk 0:01:33]}  Be6 {[%clk 0:01:54]} 19. c4 {[%clk 0:01:24]}  c5 {[%clk 0:01:44]} 20. Bd2 {[%clk 0:01:09]}  Rad8 {[%clk 0:01:31]} 21. Nd5 {[%clk 0:01:01]}  Bxd5 {[%clk 0:01:31]} 22. cxd5 {[%clk 0:01:02]}  c4 {[%clk 0:01:25]} 23. Bc2 {[%clk 0:01:01]}  b5 {[%clk 0:01:21]} 24. a4 {[%clk 0:00:53]}  a6 {[%clk 0:01:18]} 25. Qe2 {[%clk 0:00:43]}  Rfe8 {[%clk 0:01:13]} 26. Bb4 {[%clk 0:00:40]}  Rb8 {[%clk 0:00:51]} 27. axb5 {[%clk 0:00:34]}  axb5 {[%clk 0:00:51]} 28. h4 {[%clk 0:00:21]}  Qd7 {[%clk 0:00:48]} 29. h5 {[%clk 0:00:20]}  Nf5 {[%clk 0:00:46]} 30. hxg6 {[%clk 0:00:16]}  hxg6 {[%clk 0:00:45]} 31. Qg4 {[%clk 0:00:07]}  Rbd8 {[%clk 0:00:36]} 32. Bxf5 {[%clk 0:00:05]}  Qxf5 {[%clk 0:00:35]} 33. Qxf5 {[%clk 0:00:04]}  gxf5 {[%clk 0:00:35]} 34. d6 {[%clk 0:00:01]}  exd6 {[%clk 0:00:31]} 35. Rxe8+ {[%clk 0:00:01]}  Rxe8 {[%clk 0:00:32]} 36. Bxd6 {[%clk 0:00:01]}  c3 {[%clk 0:00:25]} 37. Rxb5 {[%clk 0:00:01]}  Rc8 {[%clk 0:00:24]} 38. Bf4 {[%clk 0:00:01]}  c2 {[%clk 0:00:23]} 39. Bc1 {[%clk 0:00:02]}  Rd8 {[%clk 0:00:20]} 40. Kh2 {[%clk 0:00:02]}  Rd1 {[%clk 0:00:19]} 41. Be3 {[%clk 0:00:02]}  c1=Q {[%clk 0:00:19]} 42. Bxc1 {[%clk 0:00:03]}  Rxc1 {[%clk 0:00:20]} 43. Rxf5 {[%clk 0:00:03]}  Rc6 {[%clk 0:00:20]} 44. g3 {[%clk 0:00:03]}  Rf6 {[%clk 0:00:20]} 45. Rd5 {[%clk 0:00:02]}  Rxf2+ {[%clk 0:00:20]} 46. Kh3 {[%clk 0:00:03]}  Rf6 {[%clk 0:00:20]} 47. Kg4 {[%clk 0:00:03]}  Rg6+ {[%clk 0:00:21]} 48. Kf3 {[%clk 0:00:04]}  Bf8 {[%clk 0:00:21]} 49. g4 {[%clk 0:00:04]}  Kg7 {[%clk 0:00:21]} 50. Rf5 {[%clk 0:00:04]}  Rf6 {[%clk 0:00:21]} 51. Kf4 {[%clk 0:00:03]}  Bd6+ {[%clk 0:00:20]} 52. Kg5 {[%clk 0:00:03]}  Rxf5+ {[%clk 0:00:21]} 53. Kxf5 {[%clk 0:00:02]}  Be7 {[%clk 0:00:21]} 54. g5 {[%clk 0:00:01]}  Bd8 {[%clk 0:00:21]} 55. Kf4 {[%clk 0:00:01]}  Kg6 {[%clk 0:00:21]} 0-1


[Site "https://www.chess.com"]

[Event "Titled Tuesday Blitz April 25 Late 2023"]
[White "Rosen, Eric"]
[Black "Rottenwohrer Suarez, Juan"]
[WhiteFideId "2032562"]
[BlackFideId "32068182"]
[WhiteElo "2331"]
[BlackElo "2174"]
[Result "1-0"]
[Round "03"]
[TimeControl "180+2"]
[Date "2023.04.25"]
[WhiteClock "0:00:02"]
[BlackClock "0:00:02"]

1. e4 {[%clk 0:03:00]}  c5 {[%clk 0:02:30]} 2. Nf3 {[%clk 0:03:00]}  g6 {[%clk 0:02:29]} 3. d4 {[%clk 0:02:53]}  cxd4 {[%clk 0:02:30]} 4. Nxd4 {[%clk 0:02:52]}  Nc6 {[%clk 0:02:28]} 5. c4 {[%clk 0:02:52]}  Nf6 {[%clk 0:02:27]} 6. Nc3 {[%clk 0:02:51]}  d6 {[%clk 0:02:28]} 7. f3 {[%clk 0:02:48]}  Bg7 {[%clk 0:02:13]} 8. Be3 {[%clk 0:02:47]}  O-O {[%clk 0:02:12]} 9. b3 {[%clk 0:02:35]}  Nh5 {[%clk 0:02:10]} 10. Qd2 {[%clk 0:02:26]}  Bd7 {[%clk 0:01:57]} 11. Be2 {[%clk 0:02:25]}  a6 {[%clk 0:01:54]} 12. O-O {[%clk 0:02:23]}  Nf4 {[%clk 0:01:54]} 13. Rad1 {[%clk 0:02:01]}  Nxd4 {[%clk 0:01:28]} 14. Bxd4 {[%clk 0:02:00]}  Bxd4+ {[%clk 0:01:24]} 15. Qxd4 {[%clk 0:02:00]}  b5 {[%clk 0:01:25]} 16. e5 {[%clk 0:01:45]}  Nxe2+ {[%clk 0:01:19]} 17. Nxe2 {[%clk 0:01:46]}  bxc4 {[%clk 0:01:10]} 18. bxc4 {[%clk 0:01:46]}  Ba4 {[%clk 0:01:06]} 19. Rb1 {[%clk 0:01:21]}  dxe5 {[%clk 0:01:05]} 20. Qxe5 {[%clk 0:01:22]}  Qd3 {[%clk 0:00:56]} 21. Nc3 {[%clk 0:00:55]}  Qxc4 {[%clk 0:00:50]} 22. Nd5 {[%clk 0:00:55]}  Ra7 {[%clk 0:00:20]} 23. Nxe7+ {[%clk 0:00:41]}  Rxe7 {[%clk 0:00:21]} 24. Qxe7 {[%clk 0:00:41]}  Qxa2 {[%clk 0:00:18]} 25. Qf6 {[%clk 0:00:33]}  Bb5 {[%clk 0:00:15]} 26. Rfe1 {[%clk 0:00:30]}  Rc8 {[%clk 0:00:06]} 27. Rbd1 {[%clk 0:00:18]}  a5 {[%clk 0:00:04]} 28. Rd8+ {[%clk 0:00:14]}  Rxd8 {[%clk 0:00:04]} 29. Qxd8+ {[%clk 0:00:15]}  Kg7 {[%clk 0:00:05]} 30. Qd4+ {[%clk 0:00:16]}  Kg8 {[%clk 0:00:04]} 31. Rc1 {[%clk 0:00:14]}  Qe6 {[%clk 0:00:03]} 32. h4 {[%clk 0:00:09]}  a4 {[%clk 0:00:03]} 33. Qb4 {[%clk 0:00:05]}  Qe3+ {[%clk 0:00:01]} 34. Kh2 {[%clk 0:00:04]}  Qxc1 {[%clk 0:00:02]} 35. Qxb5 {[%clk 0:00:02]}  a3 {[%clk 0:00:03]} 36. Qe8+ {[%clk 0:00:02]}  Kg7 {[%clk 0:00:03]} 37. Qe5+ {[%clk 0:00:03]}  Kg8 {[%clk 0:00:04]} 38. Qb8+ {[%clk 0:00:02]}  Kg7 {[%clk 0:00:03]} 39. Qe5+ {[%clk 0:00:02]}  Kh6 {[%clk 0:00:02]} 40. g4 {[%clk 0:00:02]} 1-0


[Site "https://www.chess.com"]

[Event "Titled Tuesday Blitz April 25 Late 2023"]
[White "Piesik, Piotr"]
[Black "Federzoni, Enzo"]
[WhiteFideId "1136194"]
[BlackFideId "2173301"]
[WhiteElo "2299"]
[BlackElo "2039"]
[Result "1-0"]
[Round "03"]
[TimeControl "180+2"]
[Date "2023.04.25"]
[WhiteClock "0:00:08"]
[BlackClock "0:00:02"]

1. Nf3 {[%clk 0:03:00]}  Nf6 {[%clk 0:02:54]} 2. g3 {[%clk 0:03:00]}  b5 {[%clk 0:02:55]} 3. Bg2 {[%clk 0:03:01]}  Bb7 {[%clk 0:02:55]} 4. O-O {[%clk 0:03:02]}  e6 {[%clk 0:02:56]} 5. d3 {[%clk 0:03:02]}  Be7 {[%clk 0:02:56]} 6. Nbd2 {[%clk 0:03:02]}  O-O {[%clk 0:02:57]} 7. a4 {[%clk 0:03:02]}  b4 {[%clk 0:02:55]} 8. a5 {[%clk 0:03:01]}  a6 {[%clk 0:02:54]} 9. e4 {[%clk 0:03:01]}  d6 {[%clk 0:02:52]} 10. b3 {[%clk 0:02:56]}  c5 {[%clk 0:02:48]} 11. Bb2 {[%clk 0:02:56]}  e5 {[%clk 0:02:40]} 12. Nc4 {[%clk 0:02:55]}  Nc6 {[%clk 0:02:31]} 13. Nfd2 {[%clk 0:02:55]}  Rb8 {[%clk 0:02:24]} 14. f4 {[%clk 0:02:54]}  exf4 {[%clk 0:02:14]} 15. gxf4 {[%clk 0:02:55]}  d5 {[%clk 0:02:14]} 16. exd5 {[%clk 0:02:27]}  Nxd5 {[%clk 0:02:13]} 17. Ne4 {[%clk 0:02:27]}  f5 {[%clk 0:01:57]} 18. Ned6 {[%clk 0:02:25]}  Nd4 {[%clk 0:01:30]} 19. Nxb7 {[%clk 0:02:12]}  Rxb7 {[%clk 0:01:27]} 20. Qe1 {[%clk 0:01:38]}  Bf6 {[%clk 0:01:21]} 21. Kh1 {[%clk 0:01:28]}  Re7 {[%clk 0:01:12]} 22. Qf2 {[%clk 0:01:26]}  Re2 {[%clk 0:01:10]} 23. Qg3 {[%clk 0:01:19]}  Nxc2 {[%clk 0:00:58]} 24. Bxf6 {[%clk 0:01:09]}  Nxf6 {[%clk 0:00:52]} 25. Ra2 {[%clk 0:01:00]}  Nd4 {[%clk 0:00:51]} 26. Rxe2 {[%clk 0:00:57]}  Nxe2 {[%clk 0:00:51]} 27. Qe3 {[%clk 0:00:50]}  Nd4 {[%clk 0:00:49]} 28. Qe5 {[%clk 0:00:50]}  Nxb3 {[%clk 0:00:27]} 29. Qxf5 {[%clk 0:00:49]}  Qd4 {[%clk 0:00:24]} 30. Ne5 {[%clk 0:00:40]}  Nd2 {[%clk 0:00:19]} 31. Rd1 {[%clk 0:00:34]}  Nd5 {[%clk 0:00:19]} 32. Qe6+ {[%clk 0:00:33]}  Kh8 {[%clk 0:00:19]} 33. Bxd5 {[%clk 0:00:26]}  Qxf4 {[%clk 0:00:11]} 34. Nf7+ {[%clk 0:00:20]}  Rxf7 {[%clk 0:00:08]} 35. Qxf7 {[%clk 0:00:21]}  Qb8 {[%clk 0:00:03]} 36. Rxd2 {[%clk 0:00:20]}  b3 {[%clk 0:00:03]} 37. Bxb3 {[%clk 0:00:18]}  c4 {[%clk 0:00:03]} 38. Qxc4 {[%clk 0:00:15]}  Qb7+ {[%clk 0:00:02]} 39. Qd5 {[%clk 0:00:15]}  Qb8 {[%clk 0:00:02]} 40. Re2 {[%clk 0:00:11]}  h6 {[%clk 0:00:03]} 41. Qf7 {[%clk 0:00:10]}  Qa8+ {[%clk 0:00:03]} 42. Bd5 {[%clk 0:00:10]}  Qg8 {[%clk 0:00:02]} 43. Qxg8# {[%clk 0:00:08]} 1-0


[Site "https://www.chess.com"]

[Event "Titled Tuesday Blitz April 25 Late 2023"]
[White "Silva, Miguel Antonio Neto"]
[Black "Ismagilov, Damir"]
[WhiteFideId "1911929"]
[BlackFideId "34199982"]
[WhiteElo "2223"]
[BlackElo "2078"]
[Result "1-0"]
[Round "03"]
[TimeControl "180+2"]
[Date "2023.04.25"]
[WhiteClock "0:00:12"]
[BlackClock "0:00:15"]

1. c4 {[%clk 0:03:00]}  e6 {[%clk 0:02:59]} 2. d4 {[%clk 0:02:57]}  Nf6 {[%clk 0:02:54]} 3. Nc3 {[%clk 0:02:53]}  Bb4 {[%clk 0:02:54]} 4. e3 {[%clk 0:02:45]}  O-O {[%clk 0:02:54]} 5. Bd3 {[%clk 0:02:45]}  Re8 {[%clk 0:02:51]} 6. Bd2 {[%clk 0:02:44]}  d6 {[%clk 0:02:47]} 7. a3 {[%clk 0:02:42]}  Bxc3 {[%clk 0:02:47]} 8. Bxc3 {[%clk 0:02:42]}  Nbd7 {[%clk 0:02:44]} 9. Ne2 {[%clk 0:02:38]}  e5 {[%clk 0:02:43]} 10. Bf5 {[%clk 0:02:32]}  exd4 {[%clk 0:02:19]} 11. Nxd4 {[%clk 0:02:29]}  Ne5 {[%clk 0:02:17]} 12. Bxc8 {[%clk 0:02:17]}  Rxc8 {[%clk 0:02:16]} 13. b3 {[%clk 0:02:17]}  Qd7 {[%clk 0:02:11]} 14. O-O {[%clk 0:02:16]}  Ne4 {[%clk 0:02:10]} 15. Bb2 {[%clk 0:02:14]}  c5 {[%clk 0:01:59]} 16. Nb5 {[%clk 0:02:12]}  a6 {[%clk 0:01:41]} 17. Nc3 {[%clk 0:02:11]}  Ng5 {[%clk 0:01:40]} 18. Nd5 {[%clk 0:01:59]}  Ngf3+ {[%clk 0:01:25]} 19. gxf3 {[%clk 0:01:10]}  Qh3 {[%clk 0:01:24]} 20. Bxe5 {[%clk 0:01:09]}  dxe5 {[%clk 0:01:20]} 21. Kh1 {[%clk 0:01:03]}  h5 {[%clk 0:01:08]} 22. Rg1 {[%clk 0:01:02]}  Rc6 {[%clk 0:01:09]} 23. Rg3 {[%clk 0:00:50]}  Qh4 {[%clk 0:01:03]} 24. Qf1 {[%clk 0:00:46]}  Rg6 {[%clk 0:01:00]} 25. Qh3 {[%clk 0:00:33]}  Qxh3 {[%clk 0:00:57]} 26. Rxh3 {[%clk 0:00:33]}  b5 {[%clk 0:00:57]} 27. cxb5 {[%clk 0:00:31]}  axb5 {[%clk 0:00:58]} 28. Rg3 {[%clk 0:00:29]}  Rd6 {[%clk 0:00:55]} 29. e4 {[%clk 0:00:29]}  c4 {[%clk 0:00:53]} 30. bxc4 {[%clk 0:00:29]}  bxc4 {[%clk 0:00:54]} 31. Rc1 {[%clk 0:00:29]}  Rc8 {[%clk 0:00:54]} 32. Rgg1 {[%clk 0:00:28]}  Rc5 {[%clk 0:00:47]} 33. Rg5 {[%clk 0:00:26]}  f6 {[%clk 0:00:46]} 34. Rxh5 {[%clk 0:00:26]}  Ra6 {[%clk 0:00:46]} 35. Rc3 {[%clk 0:00:25]}  Ra7 {[%clk 0:00:44]} 36. Rh3 {[%clk 0:00:25]}  Rb7 {[%clk 0:00:45]} 37. Rg3 {[%clk 0:00:24]}  Rb3 {[%clk 0:00:43]} 38. Rc2 {[%clk 0:00:21]}  Rxa3 {[%clk 0:00:42]} 39. Nxf6+ {[%clk 0:00:21]}  Kf7 {[%clk 0:00:41]} 40. Nd5 {[%clk 0:00:21]}  Rd3 {[%clk 0:00:38]} 41. Rg5 {[%clk 0:00:21]}  Rxf3 {[%clk 0:00:38]} 42. Rxe5 {[%clk 0:00:20]}  c3 {[%clk 0:00:36]} 43. Kg2 {[%clk 0:00:20]}  Rd3 {[%clk 0:00:36]} 44. Kf1 {[%clk 0:00:19]}  Rh3 {[%clk 0:00:32]} 45. Ke2 {[%clk 0:00:19]}  Rxh2 {[%clk 0:00:32]} 46. Rf5+ {[%clk 0:00:19]}  Ke6 {[%clk 0:00:32]} 47. Nf4+ {[%clk 0:00:18]}  Kd6 {[%clk 0:00:33]} 48. Rxc5 {[%clk 0:00:18]}  Kxc5 {[%clk 0:00:33]} 49. Rxc3+ {[%clk 0:00:19]}  Kd4 {[%clk 0:00:33]} 50. Re3 {[%clk 0:00:19]}  Ke5 {[%clk 0:00:29]} 51. Nd3+ {[%clk 0:00:18]}  Kd4 {[%clk 0:00:28]} 52. e5 {[%clk 0:00:18]}  Rh8 {[%clk 0:00:26]} 53. e6 {[%clk 0:00:19]}  Re8 {[%clk 0:00:27]} 54. e7 {[%clk 0:00:19]}  g5 {[%clk 0:00:26]} 55. Nb4 {[%clk 0:00:17]}  Kc5 {[%clk 0:00:26]} 56. Nd3+ {[%clk 0:00:17]}  Kd6 {[%clk 0:00:26]} 57. Kf3 {[%clk 0:00:17]}  Kd7 {[%clk 0:00:25]} 58. Kg4 {[%clk 0:00:17]}  Kd6 {[%clk 0:00:23]} 59. Kxg5 {[%clk 0:00:17]}  Kd7 {[%clk 0:00:24]} 60. Kf6 {[%clk 0:00:17]}  Ra8 {[%clk 0:00:21]} 61. f4 {[%clk 0:00:17]}  Ke8 {[%clk 0:00:22]} 62. f5 {[%clk 0:00:17]}  Ra6+ {[%clk 0:00:23]} 63. Kg5 {[%clk 0:00:16]}  Ra1 {[%clk 0:00:22]} 64. Nf4 {[%clk 0:00:17]}  Rg1+ {[%clk 0:00:22]} 65. Kf6 {[%clk 0:00:17]}  Rd1 {[%clk 0:00:22]} 66. Ng6 {[%clk 0:00:17]}  Rf1 {[%clk 0:00:21]} 67. Rb3 {[%clk 0:00:16]}  Kd7 {[%clk 0:00:15]} 68. Rd3+ {[%clk 0:00:15]}  Kc7 {[%clk 0:00:15]} 69. e8=Q {[%clk 0:00:14]}  Kb6 {[%clk 0:00:15]} 70. Qe6+ {[%clk 0:00:13]}  Kc5 {[%clk 0:00:15]} 71. Qd5+ {[%clk 0:00:13]}  Kb6 {[%clk 0:00:15]} 72. Rb3+ {[%clk 0:00:12]} 1-0


[Site "https://www.chess.com"]

[Event "Titled Tuesday Blitz April 25 Late 2023"]
[White "Bueno, Alfeu Junior Varela"]
[Black "Janaszak, Dawid"]
[WhiteFideId "2108879"]
[BlackFideId "1119206"]
[WhiteElo "2175"]
[BlackElo "2220"]
[Result "0-1"]
[Round "03"]
[TimeControl "180+2"]
[Date "2023.04.25"]
[WhiteClock "0:00:04"]
[BlackClock "0:00:05"]

1. e4 {[%clk 0:03:00]}  c5 {[%clk 0:02:55]} 2. Nc3 {[%clk 0:03:01]}  e6 {[%clk 0:02:50]} 3. f4 {[%clk 0:03:01]}  d5 {[%clk 0:02:50]} 4. Nf3 {[%clk 0:02:59]}  dxe4 {[%clk 0:02:48]} 5. Nxe4 {[%clk 0:02:59]}  Be7 {[%clk 0:02:47]} 6. Bb5+ {[%clk 0:02:56]}  Bd7 {[%clk 0:02:45]} 7. Qe2 {[%clk 0:02:56]}  Nc6 {[%clk 0:02:36]} 8. f5 {[%clk 0:02:47]}  Nf6 {[%clk 0:02:35]} 9. fxe6 {[%clk 0:02:44]}  Bxe6 {[%clk 0:02:30]} 10. Bxc6+ {[%clk 0:02:41]}  bxc6 {[%clk 0:02:31]} 11. Nfg5 {[%clk 0:02:28]}  O-O {[%clk 0:02:07]} 12. Nxe6 {[%clk 0:02:27]}  fxe6 {[%clk 0:02:08]} 13. Ng5 {[%clk 0:02:17]}  Qd7 {[%clk 0:00:57]} 14. Qxe6+ {[%clk 0:02:14]}  Qxe6+ {[%clk 0:00:56]} 15. Nxe6 {[%clk 0:02:15]}  Rf7 {[%clk 0:00:55]} 16. O-O {[%clk 0:01:58]}  c4 {[%clk 0:00:55]} 17. b3 {[%clk 0:01:54]}  Re8 {[%clk 0:00:44]} 18. Bb2 {[%clk 0:01:24]}  Ne4 {[%clk 0:00:41]} 19. Rxf7 {[%clk 0:00:58]}  Kxf7 {[%clk 0:00:41]} 20. Nxg7 {[%clk 0:00:58]}  Rd8 {[%clk 0:00:36]} 21. Rf1+ {[%clk 0:00:55]}  Kg6 {[%clk 0:00:36]} 22. Re1 {[%clk 0:00:53]}  Bc5+ {[%clk 0:00:35]} 23. Kf1 {[%clk 0:00:40]}  Rf8+ {[%clk 0:00:19]} 24. Ke2 {[%clk 0:00:40]}  Rf2+ {[%clk 0:00:19]} 25. Kd1 {[%clk 0:00:41]}  Rxd2+ {[%clk 0:00:17]} 26. Kc1 {[%clk 0:00:39]}  c3 {[%clk 0:00:18]} 27. Ne6 {[%clk 0:00:29]}  cxb2+ {[%clk 0:00:16]} 28. Kxb2 {[%clk 0:00:30]}  Bd6 {[%clk 0:00:07]} 29. Rxe4 {[%clk 0:00:29]}  Rxg2 {[%clk 0:00:08]} 30. h4 {[%clk 0:00:20]}  Kf5 {[%clk 0:00:08]} 31. Re1 {[%clk 0:00:19]}  Be5+ {[%clk 0:00:09]} 32. Rxe5+ {[%clk 0:00:15]}  Kxe5 {[%clk 0:00:09]} 33. Ng5 {[%clk 0:00:14]}  h5 {[%clk 0:00:07]} 34. Kc3 {[%clk 0:00:13]}  Kf4 {[%clk 0:00:06]} 35. Ne6+ {[%clk 0:00:12]}  Kg4 {[%clk 0:00:05]} 36. Nd4 {[%clk 0:00:12]}  Kxh4 {[%clk 0:00:05]} 37. Nxc6 {[%clk 0:00:12]}  Kg3 {[%clk 0:00:04]} 38. Nd4 {[%clk 0:00:09]}  h4 {[%clk 0:00:05]} 39. Nf5+ {[%clk 0:00:08]}  Kg4 {[%clk 0:00:04]} 40. Nxh4 {[%clk 0:00:04]}  Kxh4 {[%clk 0:00:05]} 41. Kd4 {[%clk 0:00:04]}  Rxc2 {[%clk 0:00:05]} 0-1


[Site "https://www.chess.com"]

[Event "Titled Tuesday Blitz April 25 Late 2023"]
[White "Bogaudinov, Rushan"]
[Black "Martic, Ivan"]
[WhiteFideId "4129288"]
[BlackFideId "929301"]
[WhiteElo "1967"]
[BlackElo "2360"]
[Result "0-1"]
[Round "03"]
[TimeControl "180+2"]
[Date "2023.04.25"]
[WhiteClock "0:00:08"]
[BlackClock "0:00:14"]

1. e4 {[%clk 0:03:00]}  c5 {[%clk 0:02:59]} 2. Nc3 {[%clk 0:02:58]}  e6 {[%clk 0:02:57]} 3. f4 {[%clk 0:02:55]}  d5 {[%clk 0:02:53]} 4. Bb5+ {[%clk 0:02:54]}  Bd7 {[%clk 0:02:50]} 5. Bxd7+ {[%clk 0:02:52]}  Qxd7 {[%clk 0:02:48]} 6. Nf3 {[%clk 0:02:49]}  Nf6 {[%clk 0:02:44]} 7. Ne5 {[%clk 0:02:44]}  Qc8 {[%clk 0:02:35]} 8. exd5 {[%clk 0:02:41]}  exd5 {[%clk 0:02:35]} 9. d4 {[%clk 0:02:35]}  cxd4 {[%clk 0:02:32]} 10. Qxd4 {[%clk 0:02:36]}  Bc5 {[%clk 0:02:32]} 11. Qd3 {[%clk 0:02:26]}  O-O {[%clk 0:02:30]} 12. Bd2 {[%clk 0:02:22]}  Nc6 {[%clk 0:02:14]} 13. O-O-O {[%clk 0:02:20]}  Nb4 {[%clk 0:02:10]} 14. Qf3 {[%clk 0:02:02]}  Qf5 {[%clk 0:01:34]} 15. Nd3 {[%clk 0:01:54]}  Nxd3+ {[%clk 0:01:29]} 16. Qxd3 {[%clk 0:01:47]}  Qxd3 {[%clk 0:01:28]} 17. cxd3 {[%clk 0:01:48]}  Ng4 {[%clk 0:01:19]} 18. Be1 {[%clk 0:01:08]}  Be3+ {[%clk 0:01:15]} 19. Kb1 {[%clk 0:01:08]}  d4 {[%clk 0:01:12]} 20. Ne4 {[%clk 0:00:56]}  Bxf4 {[%clk 0:01:07]} 21. Bb4 {[%clk 0:00:49]}  Rfe8 {[%clk 0:01:02]} 22. g3 {[%clk 0:00:46]}  Bh6 {[%clk 0:00:56]} 23. Rdf1 {[%clk 0:00:42]}  Ne3 {[%clk 0:00:53]} 24. Rf3 {[%clk 0:00:41]}  Rac8 {[%clk 0:00:52]} 25. Nd6 {[%clk 0:00:31]}  Red8 {[%clk 0:00:42]} 26. Nxc8 {[%clk 0:00:30]}  Rxc8 {[%clk 0:00:43]} 27. Bd2 {[%clk 0:00:24]}  f6 {[%clk 0:00:36]} 28. Re1 {[%clk 0:00:23]}  b5 {[%clk 0:00:30]} 29. a3 {[%clk 0:00:21]}  Kf7 {[%clk 0:00:24]} 30. h4 {[%clk 0:00:21]}  g6 {[%clk 0:00:24]} 31. g4 {[%clk 0:00:18]}  Kg7 {[%clk 0:00:20]} 32. g5 {[%clk 0:00:17]}  fxg5 {[%clk 0:00:21]} 33. Bxe3 {[%clk 0:00:18]}  dxe3 {[%clk 0:00:21]} 34. Rfxe3 {[%clk 0:00:17]}  gxh4 {[%clk 0:00:21]} 35. Re7+ {[%clk 0:00:17]}  Kg8 {[%clk 0:00:20]} 36. Rxa7 {[%clk 0:00:16]}  h3 {[%clk 0:00:15]} 37. Rh1 {[%clk 0:00:16]}  Rc1+ {[%clk 0:00:15]} 38. Rxc1 {[%clk 0:00:14]}  Bxc1 {[%clk 0:00:16]} 39. Re7 {[%clk 0:00:11]}  h2 {[%clk 0:00:14]} 40. Re1 {[%clk 0:00:10]}  Be3 {[%clk 0:00:13]} 41. Rh1 {[%clk 0:00:09]}  Bg1 {[%clk 0:00:13]} 42. Kc2 {[%clk 0:00:09]}  Kf7 {[%clk 0:00:11]} 43. Kd2 {[%clk 0:00:07]}  Ke6 {[%clk 0:00:12]} 44. Ke2 {[%clk 0:00:08]}  Kd5 {[%clk 0:00:12]} 45. b3 {[%clk 0:00:05]}  Kd4 {[%clk 0:00:12]} 46. a4 {[%clk 0:00:05]}  bxa4 {[%clk 0:00:13]} 47. bxa4 {[%clk 0:00:06]}  Kc5 {[%clk 0:00:14]} 48. Kf1 {[%clk 0:00:03]}  Kb4 {[%clk 0:00:13]} 49. Rxg1 {[%clk 0:00:04]}  hxg1=Q+ {[%clk 0:00:13]} 50. Kxg1 {[%clk 0:00:04]}  Kxa4 {[%clk 0:00:14]} 51. Kf2 {[%clk 0:00:05]}  Kb4 {[%clk 0:00:14]} 52. Ke3 {[%clk 0:00:06]}  Kc5 {[%clk 0:00:14]} 53. Ke4 {[%clk 0:00:07]}  Kd6 {[%clk 0:00:15]} 54. Kd4 {[%clk 0:00:07]}  h5 {[%clk 0:00:14]} 55. Ke4 {[%clk 0:00:08]}  h4 {[%clk 0:00:14]} 56. Kf4 {[%clk 0:00:08]}  Kd5 {[%clk 0:00:14]} 57. Kg4 {[%clk 0:00:08]}  g5 {[%clk 0:00:15]} 58. Kf3 {[%clk 0:00:07]}  Kd4 {[%clk 0:00:14]} 59. Ke2 {[%clk 0:00:07]}  h3 {[%clk 0:00:14]} 60. Kf3 {[%clk 0:00:07]}  Kxd3 {[%clk 0:00:13]} 61. Kg3 {[%clk 0:00:08]}  g4 {[%clk 0:00:14]} 62. Kxg4 {[%clk 0:00:08]}  h2 {[%clk 0:00:14]} 0-1


[Site "https://www.chess.com"]